[Event "Titled Tuesday Blitz December 20 Late 2022"]
[White "Buchenau, Frank"]
[Black "Vetoshko, Volodymyr"]
[WhiteFideId "4604350"]
[BlackFideId "14122480"]
[WhiteElo "2157"]
[BlackElo "2422"]
[Result "1-0"]
[Round "03"]
[TimeControl "180+1"]
[Date "2022.12.21"]
[WhiteClock "0:00:12"]
[BlackClock "0:00:02"]

1. e4 {[%clk 0:02:55]}  c6 {[%clk 0:02:58]} 2. Nf3 {[%clk 0:02:54]}  d5 {[%clk 0:02:59]} 3. Nc3 {[%clk 0:02:55]}  dxe4 {[%clk 0:02:58]} 4. Nxe4 {[%clk 0:02:55]}  Nf6 {[%clk 0:02:58]} 5. Qe2 {[%clk 0:02:55]}  Nxe4 {[%clk 0:02:37]} 6. Qxe4 {[%clk 0:02:56]}  Nd7 {[%clk 0:02:34]} 7. Bc4 {[%clk 0:02:53]}  Nf6 {[%clk 0:02:34]} 8. Qe2 {[%clk 0:02:48]}  e6 {[%clk 0:02:23]} 9. d4 {[%clk 0:02:46]}  Be7 {[%clk 0:02:14]} 10. O-O {[%clk 0:02:46]}  O-O {[%clk 0:02:15]} 11. Bf4 {[%clk 0:02:39]}  b5 {[%clk 0:02:14]} 12. Bd3 {[%clk 0:02:38]}  Bb7 {[%clk 0:02:14]} 13. a4 {[%clk 0:02:35]}  a6 {[%clk 0:02:13]} 14. Rfd1 {[%clk 0:02:33]}  Qb6 {[%clk 0:01:56]} 15. a5 {[%clk 0:02:17]}  Qd8 {[%clk 0:01:55]} 16. c3 {[%clk 0:02:16]}  Qd5 {[%clk 0:01:38]} 17. b4 {[%clk 0:01:57]}  Qh5 {[%clk 0:01:38]} 18. Qc2 {[%clk 0:01:49]}  c5 {[%clk 0:01:29]} 19. dxc5 {[%clk 0:01:30]}  Bxf3 {[%clk 0:01:28]} 20. gxf3 {[%clk 0:01:30]}  Qxf3 {[%clk 0:01:24]} 21. Bg3 {[%clk 0:01:28]}  h5 {[%clk 0:01:07]} 22. Qe2 {[%clk 0:01:19]}  Qc6 {[%clk 0:00:58]} 23. Be5 {[%clk 0:01:01]}  Rad8 {[%clk 0:00:56]} 24. Bxf6 {[%clk 0:00:48]}  Bxf6 {[%clk 0:00:56]} 25. Be4 {[%clk 0:00:41]}  Qc7 {[%clk 0:00:50]} 26. Qxh5 {[%clk 0:00:39]}  g6 {[%clk 0:00:48]} 27. Qf3 {[%clk 0:00:39]}  Qe5 {[%clk 0:00:43]} 28. Bb7 {[%clk 0:00:25]}  Kg7 {[%clk 0:00:39]} 29. c6 {[%clk 0:00:24]}  Rxd1+ {[%clk 0:00:31]} 30. Rxd1 {[%clk 0:00:24]}  Rh8 {[%clk 0:00:31]} 31. Qg3 {[%clk 0:00:20]}  Qh5 {[%clk 0:00:27]} 32. Re1 {[%clk 0:00:14]}  Bd8 {[%clk 0:00:03]} 33. c7 {[%clk 0:00:13]}  Bxc7 {[%clk 0:00:03]} 34. Qxc7 {[%clk 0:00:14]}  Qg4+ {[%clk 0:00:02]} 35. Qg3 {[%clk 0:00:14]}  Qc4 {[%clk 0:00:02]} 36. Re3 {[%clk 0:00:12]}  Rd8 {[%clk 0:00:02]} 37. Bxa6 {[%clk 0:00:12]}  Rd1+ {[%clk 0:00:02]} 38. Kg2 {[%clk 0:00:12]}  Qf1+ {[%clk 0:00:02]} 39. Kf3 {[%clk 0:00:12]} 1-0


[Site "https://www.chess.com"]

[Event "Titled Tuesday Blitz December 20 Late 2022"]
[White "Chigaev, Maksim"]
[Black "Kuzmicz, Krystian"]
[WhiteFideId "4108116"]
[BlackFideId "1119125"]
[WhiteElo "2542"]
[BlackElo "2379"]
[Result "1-0"]
[Round "03"]
[TimeControl "180+1"]
[Date "2022.12.20"]
[WhiteClock "0:00:12"]
[BlackClock "0:00:06"]

1. Nf3 {[%clk 0:03:00]}  g6 {[%clk 0:02:59]} 2. g3 {[%clk 0:02:57]}  Bg7 {[%clk 0:02:59]} 3. Bg2 {[%clk 0:02:58]}  e5 {[%clk 0:03:00]} 4. O-O {[%clk 0:02:58]}  d6 {[%clk 0:03:00]} 5. c4 {[%clk 0:02:57]}  f5 {[%clk 0:03:00]} 6. Nc3 {[%clk 0:02:57]}  Nf6 {[%clk 0:03:01]} 7. d3 {[%clk 0:02:58]}  O-O {[%clk 0:03:01]} 8. Rb1 {[%clk 0:02:58]}  Nc6 {[%clk 0:03:00]} 9. b4 {[%clk 0:02:57]}  h6 {[%clk 0:03:01]} 10. b5 {[%clk 0:02:57]}  Ne7 {[%clk 0:03:01]} 11. a4 {[%clk 0:02:58]}  Be6 {[%clk 0:03:01]} 12. Ne1 {[%clk 0:02:54]}  Rb8 {[%clk 0:03:00]} 13. Nc2 {[%clk 0:02:55]}  g5 {[%clk 0:03:00]} 14. Nb4 {[%clk 0:02:54]}  f4 {[%clk 0:02:58]} 15. a5 {[%clk 0:02:54]}  Qd7 {[%clk 0:02:53]} 16. a6 {[%clk 0:02:52]}  b6 {[%clk 0:02:53]} 17. Nc6 {[%clk 0:02:41]}  Nxc6 {[%clk 0:02:53]} 18. bxc6 {[%clk 0:02:41]}  Qf7 {[%clk 0:02:51]} 19. Nb5 {[%clk 0:02:36]}  Ra8 {[%clk 0:02:51]} 20. e3 {[%clk 0:02:32]}  Ne8 {[%clk 0:02:13]} 21. exf4 {[%clk 0:02:28]}  exf4 {[%clk 0:02:08]} 22. gxf4 {[%clk 0:02:28]}  gxf4 {[%clk 0:02:08]} 23. Bf3 {[%clk 0:02:25]}  Kh8 {[%clk 0:02:04]} 24. Kh1 {[%clk 0:02:25]}  d5 {[%clk 0:01:57]} 25. cxd5 {[%clk 0:01:43]}  Bxd5 {[%clk 0:01:57]} 26. Rg1 {[%clk 0:01:43]}  Nf6 {[%clk 0:01:44]} 27. Bb2 {[%clk 0:01:37]}  Rfd8 {[%clk 0:01:37]} 28. Be5 {[%clk 0:01:16]}  Qh5 {[%clk 0:01:13]} 29. Bxd5 {[%clk 0:01:11]}  Qxe5 {[%clk 0:01:13]} 30. Bf3 {[%clk 0:01:09]}  Qf5 {[%clk 0:00:57]} 31. d4 {[%clk 0:01:07]}  Ne4 {[%clk 0:00:52]} 32. Rg2 {[%clk 0:00:41]}  Ng5 {[%clk 0:00:39]} 33. Rxg5 {[%clk 0:00:35]}  Qxg5 {[%clk 0:00:35]} 34. Nxc7 {[%clk 0:00:36]}  Rxd4 {[%clk 0:00:27]} 35. Nxa8 {[%clk 0:00:33]}  Rxd1+ {[%clk 0:00:26]} 36. Rxd1 {[%clk 0:00:34]}  Be5 {[%clk 0:00:25]} 37. c7 {[%clk 0:00:30]}  Bxc7 {[%clk 0:00:25]} 38. Nxc7 {[%clk 0:00:31]}  Qe7 {[%clk 0:00:22]} 39. Nd5 {[%clk 0:00:28]}  Qa3 {[%clk 0:00:22]} 40. Kg2 {[%clk 0:00:26]}  Qxa6 {[%clk 0:00:21]} 41. Nxf4 {[%clk 0:00:26]}  Qc4 {[%clk 0:00:20]} 42. Rd8+ {[%clk 0:00:21]}  Kg7 {[%clk 0:00:20]} 43. Rd7+ {[%clk 0:00:22]}  Kf6 {[%clk 0:00:19]} 44. Nh5+ {[%clk 0:00:23]}  Ke6 {[%clk 0:00:17]} 45. Rxa7 {[%clk 0:00:23]}  Qc5 {[%clk 0:00:16]} 46. Ng3 {[%clk 0:00:19]}  b5 {[%clk 0:00:15]} 47. Rb7 {[%clk 0:00:19]}  b4 {[%clk 0:00:15]} 48. Ne4 {[%clk 0:00:18]}  Qd4 {[%clk 0:00:14]} 49. h3 {[%clk 0:00:15]}  Ke5 {[%clk 0:00:12]} 50. Rb5+ {[%clk 0:00:14]}  Kf4 {[%clk 0:00:12]} 51. Ng3 {[%clk 0:00:12]}  Qd3 {[%clk 0:00:06]} 52. Nh5# {[%clk 0:00:12]} 1-0


[Site "https://www.chess.com"]

[Event "Titled Tuesday Blitz December 20 Late 2022"]
[White "Clawitter, Craig"]
[Black "Can, Melih Kaan"]
[WhiteFideId "2023105"]
[BlackFideId "6317383"]
[WhiteElo "2221"]
[BlackElo "2010"]
[Result "1/2-1/2"]
[Round "03"]
[TimeControl "180+1"]
[Date "2022.12.21"]
[WhiteClock "0:00:14"]
[BlackClock "0:01:00"]

1. e4 {[%clk 0:02:56]}  e5 {[%clk 0:02:58]} 2. Nf3 {[%clk 0:02:56]}  Nc6 {[%clk 0:02:59]} 3. Bb5 {[%clk 0:02:56]}  a6 {[%clk 0:02:58]} 4. Ba4 {[%clk 0:02:55]}  Nf6 {[%clk 0:02:58]} 5. O-O {[%clk 0:02:54]}  Be7 {[%clk 0:02:58]} 6. d3 {[%clk 0:02:55]}  b5 {[%clk 0:02:58]} 7. Bb3 {[%clk 0:02:55]}  O-O {[%clk 0:02:58]} 8. Nc3 {[%clk 0:02:56]}  Na5 {[%clk 0:02:52]} 9. Nxe5 {[%clk 0:02:55]}  Nxb3 {[%clk 0:02:52]} 10. axb3 {[%clk 0:02:56]}  Bb7 {[%clk 0:02:52]} 11. Ng4 {[%clk 0:02:47]}  d5 {[%clk 0:02:42]} 12. Nxf6+ {[%clk 0:02:45]}  Bxf6 {[%clk 0:02:43]} 13. Nxd5 {[%clk 0:02:45]}  Bxd5 {[%clk 0:02:44]} 14. exd5 {[%clk 0:02:46]}  Qxd5 {[%clk 0:02:44]} 15. b4 {[%clk 0:02:34]}  Rfe8 {[%clk 0:02:34]} 16. c3 {[%clk 0:02:29]}  c5 {[%clk 0:02:30]} 17. bxc5 {[%clk 0:02:28]}  Qxc5 {[%clk 0:02:30]} 18. Be3 {[%clk 0:02:17]}  Qd5 {[%clk 0:02:29]} 19. Re1 {[%clk 0:02:07]}  Red8 {[%clk 0:02:24]} 20. d4 {[%clk 0:02:05]}  a5 {[%clk 0:02:24]} 21. Bf4 {[%clk 0:01:43]}  a4 {[%clk 0:02:21]} 22. Be5 {[%clk 0:01:38]}  Bxe5 {[%clk 0:02:16]} 23. Rxe5 {[%clk 0:01:30]}  Qxe5 {[%clk 0:02:09]} 24. dxe5 {[%clk 0:01:31]}  Rxd1+ {[%clk 0:02:10]} 25. Rxd1 {[%clk 0:01:32]}  Kf8 {[%clk 0:02:10]} 26. f4 {[%clk 0:01:26]}  a3 {[%clk 0:02:08]} 27. bxa3 {[%clk 0:01:26]}  Rxa3 {[%clk 0:02:09]} 28. Rd5 {[%clk 0:01:18]}  Rxc3 {[%clk 0:02:07]} 29. Rxb5 {[%clk 0:01:18]}  Rc2 {[%clk 0:02:06]} 30. Rb7 {[%clk 0:01:09]}  h5 {[%clk 0:02:05]} 31. h4 {[%clk 0:01:03]}  g6 {[%clk 0:02:04]} 32. Kh2 {[%clk 0:01:03]}  Rc3 {[%clk 0:02:02]} 33. g3 {[%clk 0:01:01]}  Rc2+ {[%clk 0:02:01]} 34. Kg1 {[%clk 0:00:54]}  Re2 {[%clk 0:02:00]} 35. Kf1 {[%clk 0:00:53]}  Rc2 {[%clk 0:01:58]} 36. Rd7 {[%clk 0:00:41]}  Rb2 {[%clk 0:01:54]} 37. Ke1 {[%clk 0:00:34]}  Rg2 {[%clk 0:01:53]} 38. Rd3 {[%clk 0:00:34]}  Ke7 {[%clk 0:01:53]} 39. Kf1 {[%clk 0:00:35]}  Ra2 {[%clk 0:01:52]} 40. Ke1 {[%clk 0:00:35]}  Ra6 {[%clk 0:01:47]} 41. Kf2 {[%clk 0:00:34]}  Ke6 {[%clk 0:01:42]} 42. Kf3 {[%clk 0:00:34]}  Kf5 {[%clk 0:01:42]} 43. Rd7 {[%clk 0:00:28]}  Ra3+ {[%clk 0:01:41]} 44. Kf2 {[%clk 0:00:26]}  Ke6 {[%clk 0:01:15]} 45. Rd6+ {[%clk 0:00:25]}  Ke7 {[%clk 0:01:15]} 46. Rb6 {[%clk 0:00:24]}  Rc3 {[%clk 0:01:14]} 47. Rb7+ {[%clk 0:00:23]}  Ke6 {[%clk 0:01:13]} 48. Ra7 {[%clk 0:00:21]}  Rb3 {[%clk 0:01:12]} 49. Kg2 {[%clk 0:00:21]}  Rb2+ {[%clk 0:01:04]} 50. Kf3 {[%clk 0:00:21]}  Rb4 {[%clk 0:01:05]} 51. Ra6+ {[%clk 0:00:20]}  Ke7 {[%clk 0:01:04]} 52. Ra7+ {[%clk 0:00:19]}  Ke6 {[%clk 0:01:05]} 53. Ra6+ {[%clk 0:00:17]}  Kd7 {[%clk 0:01:03]} 54. Rf6 {[%clk 0:00:16]}  Ke7 {[%clk 0:01:03]} 55. Ra6 {[%clk 0:00:16]}  Rb3+ {[%clk 0:01:03]} 56. Kf2 {[%clk 0:00:16]}  Rb2+ {[%clk 0:01:04]} 57. Kf3 {[%clk 0:00:16]}  Rb3+ {[%clk 0:01:04]} 58. Kf2 {[%clk 0:00:16]}  Rc3 {[%clk 0:01:04]} 59. Ra7+ {[%clk 0:00:16]}  Ke6 {[%clk 0:01:05]} 60. Ra6+ {[%clk 0:00:16]}  Kd5 {[%clk 0:01:03]} 61. Rf6 {[%clk 0:00:16]}  Rc7 {[%clk 0:01:04]} 62. Kf3 {[%clk 0:00:13]}  Rc3+ {[%clk 0:01:04]} 63. Kf2 {[%clk 0:00:13]}  Rc7 {[%clk 0:01:04]} 64. Kf3 {[%clk 0:00:14]}  Rc3+ {[%clk 0:01:00]} 65. Kf2 {[%clk 0:00:14]} 1/2-1/2


[Site "https://www.chess.com"]

[Event "Titled Tuesday Blitz December 20 Late 2022"]
[White "Curtis, John"]
[Black "Sanchez Alvares, Kelvin Antonio"]
[WhiteFideId "3200256"]
[BlackFideId "3906680"]
[WhiteElo "2203"]
[BlackElo "2217"]
[Result "0-1"]
[Round "03"]
[TimeControl "180+1"]
[Date "2022.12.21"]
[WhiteClock "0:00:46"]
[BlackClock "0:01:20"]

1. e4 {[%clk 0:02:59]}  e5 {[%clk 0:02:58]} 2. Nf3 {[%clk 0:02:58]}  Nc6 {[%clk 0:02:58]} 3. Bc4 {[%clk 0:02:51]}  Bc5 {[%clk 0:02:57]} 4. d3 {[%clk 0:02:49]}  Nf6 {[%clk 0:02:56]} 5. c3 {[%clk 0:02:50]}  a5 {[%clk 0:02:54]} 6. O-O {[%clk 0:02:48]}  d6 {[%clk 0:02:54]} 7. Be3 {[%clk 0:02:44]}  Bxe3 {[%clk 0:02:52]} 8. fxe3 {[%clk 0:02:44]}  O-O {[%clk 0:02:50]} 9. a4 {[%clk 0:02:37]}  Bg4 {[%clk 0:02:48]} 10. Nbd2 {[%clk 0:02:36]}  d5 {[%clk 0:02:46]} 11. exd5 {[%clk 0:02:36]}  Nxd5 {[%clk 0:02:46]} 12. Qe1 {[%clk 0:02:30]}  Nb6 {[%clk 0:02:45]} 13. Bb5 {[%clk 0:02:26]}  Bxf3 {[%clk 0:02:33]} 14. Rxf3 {[%clk 0:02:13]}  f5 {[%clk 0:02:24]} 15. d4 {[%clk 0:02:11]}  e4 {[%clk 0:02:23]} 16. Rf1 {[%clk 0:02:08]}  Ne7 {[%clk 0:02:23]} 17. Nc4 {[%clk 0:02:04]}  Nxc4 {[%clk 0:02:21]} 18. Bxc4+ {[%clk 0:02:04]}  Kh8 {[%clk 0:02:22]} 19. Qh4 {[%clk 0:01:56]}  c6 {[%clk 0:02:22]} 20. Rf2 {[%clk 0:01:54]}  Nd5 {[%clk 0:02:16]} 21. Qxd8 {[%clk 0:01:53]}  Raxd8 {[%clk 0:02:15]} 22. Bxd5 {[%clk 0:01:53]}  cxd5 {[%clk 0:02:11]} 23. Raf1 {[%clk 0:01:53]}  g6 {[%clk 0:02:05]} 24. g4 {[%clk 0:01:47]}  b5 {[%clk 0:02:03]} 25. gxf5 {[%clk 0:01:42]}  bxa4 {[%clk 0:01:55]} 26. fxg6 {[%clk 0:01:41]}  Rxf2 {[%clk 0:01:55]} 27. Rxf2 {[%clk 0:01:41]}  hxg6 {[%clk 0:01:55]} 28. Rf6 {[%clk 0:01:41]}  Rb8 {[%clk 0:01:53]} 29. Ra6 {[%clk 0:01:36]}  Rxb2 {[%clk 0:01:52]} 30. Rxa5 {[%clk 0:01:36]}  Rc2 {[%clk 0:01:51]} 31. Rxa4 {[%clk 0:01:36]}  Rxc3 {[%clk 0:01:51]} 32. Kf2 {[%clk 0:01:36]}  Rc2+ {[%clk 0:01:50]} 33. Kg3 {[%clk 0:01:36]}  Re2 {[%clk 0:01:50]} 34. Kf4 {[%clk 0:01:36]}  Rxh2 {[%clk 0:01:48]} 35. Ra5 {[%clk 0:01:32]}  Rh5 {[%clk 0:01:48]} 36. Ra7 {[%clk 0:01:32]}  Kg8 {[%clk 0:01:48]} 37. Kg4 {[%clk 0:01:31]}  Rf5 {[%clk 0:01:48]} 38. Rd7 {[%clk 0:01:29]}  Kf8 {[%clk 0:01:48]} 39. Rd6 {[%clk 0:01:28]}  Kf7 {[%clk 0:01:47]} 40. Rd8 {[%clk 0:01:22]}  Ke7 {[%clk 0:01:45]} 41. Rg8 {[%clk 0:01:20]}  Rf3 {[%clk 0:01:45]} 42. Rxg6 {[%clk 0:01:20]}  Rxe3 {[%clk 0:01:45]} 43. Kf4 {[%clk 0:01:20]}  Rh3 {[%clk 0:01:40]} 44. Ra6 {[%clk 0:01:15]}  Kd7 {[%clk 0:01:37]} 45. Ra1 {[%clk 0:01:11]}  Kc6 {[%clk 0:01:33]} 46. Rc1+ {[%clk 0:01:10]}  Kd6 {[%clk 0:01:32]} 47. Ra1 {[%clk 0:01:10]}  Rf3+ {[%clk 0:01:31]} 48. Kg4 {[%clk 0:01:09]}  Rd3 {[%clk 0:01:30]} 49. Ra4 {[%clk 0:01:08]}  Kc6 {[%clk 0:01:29]} 50. Kf4 {[%clk 0:01:07]}  Kb5 {[%clk 0:01:29]} 51. Ra8 {[%clk 0:01:06]}  Rxd4 {[%clk 0:01:29]} 52. Ke5 {[%clk 0:01:06]}  Rd1 {[%clk 0:01:28]} 53. Ra3 {[%clk 0:01:02]}  Kb4 {[%clk 0:01:25]} 54. Rh3 {[%clk 0:01:02]}  Rd3 {[%clk 0:01:23]} 55. Rh8 {[%clk 0:01:00]}  e3 {[%clk 0:01:23]} 56. Kf4 {[%clk 0:00:58]}  d4 {[%clk 0:01:22]} 57. Kf3 {[%clk 0:00:58]}  Rd2 {[%clk 0:01:22]} 58. Rd8 {[%clk 0:00:51]}  Kc3 {[%clk 0:01:22]} 59. Ke4 {[%clk 0:00:49]}  e2 {[%clk 0:01:21]} 60. Rc8+ {[%clk 0:00:49]}  Kb2 {[%clk 0:01:21]} 61. Rb8+ {[%clk 0:00:49]}  Kc1 {[%clk 0:01:21]} 62. Rc8+ {[%clk 0:00:49]}  Kd1 {[%clk 0:01:21]} 63. Kd5 {[%clk 0:00:46]}  e1=Q {[%clk 0:01:21]} 64. Rc1+ {[%clk 0:00:46]}  Kxc1 {[%clk 0:01:20]} 0-1


[Site "https://www.chess.com"]

[Event "Titled Tuesday Blitz December 20 Late 2022"]
[White "Czopor, Maciej"]
[Black "Young, Ryan"]
[WhiteFideId "21805431"]
[BlackFideId "2049945"]
[WhiteElo "2324"]
[BlackElo "2420"]
[Result "0-1"]
[Round "03"]
[TimeControl "180+1"]
[Date "2022.12.21"]
[WhiteClock "0:00:02"]
[BlackClock "0:00:15"]

1. c4 {[%clk 0:02:33]}  g6 {[%clk 0:02:59]} 2. Nc3 {[%clk 0:02:34]}  c5 {[%clk 0:02:58]} 3. g3 {[%clk 0:02:31]}  Bg7 {[%clk 0:02:58]} 4. Bg2 {[%clk 0:02:30]}  Nc6 {[%clk 0:02:58]} 5. e3 {[%clk 0:02:22]}  e6 {[%clk 0:02:54]} 6. Nge2 {[%clk 0:02:13]}  Nge7 {[%clk 0:02:54]} 7. h4 {[%clk 0:02:13]}  h5 {[%clk 0:02:53]} 8. d4 {[%clk 0:01:57]}  cxd4 {[%clk 0:02:50]} 9. Nxd4 {[%clk 0:01:56]}  Nxd4 {[%clk 0:02:27]} 10. exd4 {[%clk 0:01:57]}  d5 {[%clk 0:02:28]} 11. c5 {[%clk 0:01:50]}  O-O {[%clk 0:02:17]} 12. O-O {[%clk 0:01:50]}  Nf5 {[%clk 0:02:13]} 13. Ne2 {[%clk 0:01:49]}  Bd7 {[%clk 0:02:09]} 14. Bh3 {[%clk 0:01:42]}  Bb5 {[%clk 0:02:06]} 15. Bxf5 {[%clk 0:01:42]}  exf5 {[%clk 0:02:06]} 16. Re1 {[%clk 0:01:41]}  Bxe2 {[%clk 0:02:02]} 17. Rxe2 {[%clk 0:01:41]}  Re8 {[%clk 0:02:02]} 18. Be3 {[%clk 0:01:34]}  f4 {[%clk 0:01:52]} 19. Bxf4 {[%clk 0:01:26]}  Rxe2 {[%clk 0:01:52]} 20. Qxe2 {[%clk 0:01:27]}  Bxd4 {[%clk 0:01:52]} 21. Rd1 {[%clk 0:01:11]}  Bg7 {[%clk 0:01:28]} 22. b4 {[%clk 0:01:07]}  Qd7 {[%clk 0:01:24]} 23. b5 {[%clk 0:01:01]}  Re8 {[%clk 0:01:24]} 24. Qf3 {[%clk 0:01:01]}  Qxb5 {[%clk 0:01:18]} 25. Qxd5 {[%clk 0:01:01]}  Qa6 {[%clk 0:01:09]} 26. Bd6 {[%clk 0:00:58]}  Qc6 {[%clk 0:01:00]} 27. Qxc6 {[%clk 0:00:53]}  bxc6 {[%clk 0:01:00]} 28. Rd3 {[%clk 0:00:53]}  Bb2 {[%clk 0:00:56]} 29. Kf1 {[%clk 0:00:50]}  Re4 {[%clk 0:00:53]} 30. Rb3 {[%clk 0:00:50]}  Bc1 {[%clk 0:00:52]} 31. Rb8+ {[%clk 0:00:39]}  Kg7 {[%clk 0:00:51]} 32. Rb7 {[%clk 0:00:39]}  Ra4 {[%clk 0:00:50]} 33. Be5+ {[%clk 0:00:39]}  Kf8 {[%clk 0:00:41]} 34. Bf6 {[%clk 0:00:38]}  Ke8 {[%clk 0:00:41]} 35. Re7+ {[%clk 0:00:35]}  Kf8 {[%clk 0:00:41]} 36. Rd7 {[%clk 0:00:34]}  Re4 {[%clk 0:00:28]} 37. Rxa7 {[%clk 0:00:25]}  Ke8 {[%clk 0:00:25]} 38. Ra8+ {[%clk 0:00:17]}  Kd7 {[%clk 0:00:22]} 39. Rd8+ {[%clk 0:00:17]}  Ke6 {[%clk 0:00:23]} 40. Rd6+ {[%clk 0:00:17]}  Kf5 {[%clk 0:00:21]} 41. Rxc6 {[%clk 0:00:18]}  Ra4 {[%clk 0:00:17]} 42. Bc3 {[%clk 0:00:10]}  Rxa2 {[%clk 0:00:16]} 43. Rf6+ {[%clk 0:00:10]}  Ke4 {[%clk 0:00:16]} 44. Rxf7 {[%clk 0:00:09]}  Rc2 {[%clk 0:00:16]} 45. Bb4 {[%clk 0:00:03]}  Kd5 {[%clk 0:00:14]} 46. Rf6 {[%clk 0:00:02]}  Bb2 {[%clk 0:00:14]} 47. Rxg6 {[%clk 0:00:02]}  Bd4 {[%clk 0:00:15]} 48. Be1 {[%clk 0:00:01]}  Bxc5 {[%clk 0:00:13]} 49. Rg5+ {[%clk 0:00:02]}  Ke4 {[%clk 0:00:12]} 50. Kg2 {[%clk 0:00:02]}  Bd4 {[%clk 0:00:13]} 51. Rxh5 {[%clk 0:00:02]}  Rc1 {[%clk 0:00:13]} 52. Bd2 {[%clk 0:00:02]}  Rc2 {[%clk 0:00:13]} 53. Be1 {[%clk 0:00:03]}  Re2 {[%clk 0:00:13]} 54. Rh7 {[%clk 0:00:02]}  Rxe1 {[%clk 0:00:12]} 55. Re7+ {[%clk 0:00:03]}  Be5 {[%clk 0:00:13]} 56. f4 {[%clk 0:00:03]}  Re2+ {[%clk 0:00:13]} 57. Kh3 {[%clk 0:00:04]}  Kf3 {[%clk 0:00:14]} 58. Rxe5 {[%clk 0:00:03]}  Ra2 {[%clk 0:00:14]} 59. h5 {[%clk 0:00:03]}  Ra1 {[%clk 0:00:14]} 60. Kh4 {[%clk 0:00:04]}  Rh1+ {[%clk 0:00:14]} 61. Kg5 {[%clk 0:00:04]}  Kxg3 {[%clk 0:00:15]} 62. h6 {[%clk 0:00:05]}  Kf3 {[%clk 0:00:14]} 63. Kg6 {[%clk 0:00:03]}  Kxf4 {[%clk 0:00:14]} 64. Rh5 {[%clk 0:00:03]}  Rg1+ {[%clk 0:00:14]} 65. Kf7 {[%clk 0:00:04]}  Ra1 {[%clk 0:00:13]} 66. h7 {[%clk 0:00:03]}  Ra7+ {[%clk 0:00:14]} 67. Ke6 {[%clk 0:00:01]}  Ra6+ {[%clk 0:00:15]} 68. Kd5 {[%clk 0:00:02]}  Ra5+ {[%clk 0:00:15]} 0-1


[Site "https://www.chess.com"]